bitfinex/quotes_BTCUSD_20240819
["timestamp","ask_amount","ask_price","bid_price","bid_amount"]
[1724079591124,0.02268941,58719.0,58718.0,0.170305]
[1724079591303,0.03207157,58719.0,58718.0,0.170305]
[1724079591550,0.03207157,58719.0,58715.0,0.34062801]
[1724079591551,0.03207157,58719.0,58716.0,0.340621]
[1724079591747,0.03207157,58719.0,58718.0,0.170305]
[1724079591748,0.001019,58719.0,58718.0,0.170305]
[1724079591953,0.001019,58719.0,58718.0,0.510916]
[1724079591954,0.0226902,58719.0,58718.0,0.510916]
[1724079592156,0.03207267,58719.0,58718.0,0.510916]
[1724079592292,0.03607267,58719.0,58718.0,0.85674987]
[1724079592908,0.03607267,58719.0,58718.0,0.51613887]
[1724079593103,0.03607267,58719.0,58718.0,0.85674987]
[1724079593984,0.03607267,58719.0,58718.0,1.19736087]
[1724079594318,0.03607267,58719.0,58718.0,1.194138]
[1724079594519,0.04307267,58719.0,58718.0,1.294138]
[1724079595971,0.04307267,58719.0,58718.0,1.373838]
[1724079596170,0.01764848,58719.0,58718.0,1.373838]
[1724079596437,0.01764848,58719.0,58718.0,1.88579777]
[1724079596614,0.01764848,58719.0,58718.0,1.89613663]
[1724079597179,0.04306725,58719.0,58718.0,1.38417686]
[1724079597964,0.02702917,58719.0,58718.0,1.38417686]
[1724079598168,0.02702917,58719.0,58718.0,2.88417686]
[1724079598505,0.04306743,58719.0,58718.0,2.794138]
[1724079598709,0.01764748,58719.0,58718.0,2.794138]
[1724079600388,0.012019,58719.0,58718.0,3.30609777]
[1724079600594,0.012019,58719.0,58718.0,3.38709777]
[1724079600802,0.011719,58719.0,58718.0,3.79466639]
[1724079601001,0.004719,58719.0,58718.0,3.85520462]
[1724079601211,0.001,58732.0,58731.0,1.532407]
[1724079601478,0.01101789,58733.0,58732.0,0.917322]
[1724079601479,8.9e-07,58733.0,58732.0,0.917322]
[1724079601825,8.9e-07,58733.0,58732.0,1.51019977]
[1724079602027,8.9e-07,58733.0,58732.0,3.01019977]
[1724079602242,8.9e-07,58733.0,58732.0,3.11019977]
[1724079602684,8.9e-07,58733.0,58732.0,3.12060155]
[1724079603068,8.9e-07,58733.0,58732.0,3.12660155]
[1724079603301,0.00081889,58733.0,58732.0,3.12660155]
[1724079603521,0.00081889,58733.0,58732.0,2.461322]
[1724079603899,0.00081889,58733.0,58732.0,2.801851]
[1724079604108,0.00081889,58733.0,58732.0,2.797851]
[1724079604239,0.00081889,58733.0,58732.0,0.951322]
[1724079604440,0.00081889,58733.0,58732.0,0.953322]
[1724079604642,0.00081889,58733.0,58732.0,0.958322]
[1724079605051,0.00081889,58733.0,58732.0,1.293851]
[1724079605282,0.00081889,58733.0,58732.0,1.295851]
[1724079605494,0.00081889,58733.0,58732.0,1.47142077]
[1724079605691,0.00081889,58733.0,58732.0,1.61102077]
[1724079605889,0.00081889,58733.0,58732.0,3.45450739]
[1724079606102,0.00081889,58733.0,58732.0,3.79407877]
[1724079606302,0.00081889,58733.0,58732.0,3.79503639]
[1724079606521,0.00081889,58733.0,58732.0,3.79903639]
[1724079606727,0.00081889,58733.0,58732.0,3.79703639]
[1724079606927,0.00081889,58733.0,58732.0,3.80003639]
[1724079607173,0.00081889,58733.0,58732.0,3.79185777]
[1724079607374,0.00081889,58733.0,58732.0,3.78985777]
[1724079607574,0.00081889,58733.0,58732.0,3.44632877]
[1724079607757,0.000411,58746.0,58738.0,1.191732]
[1724079607973,0.000411,58746.0,58745.0,0.649681]
[1724079608173,0.000411,58746.0,58745.0,2.47394577]
[1724079608331,0.000411,58746.0,58745.0,4.00807577]
[1724079608534,0.000411,58746.0,58745.0,4.07394577]
[1724079608734,0.000411,58746.0,58745.0,4.48085324]
[1724079608937,0.000411,58746.0,58745.0,4.13644162]
[1724079609168,0.00498987,58747.0,58746.0,1.87542162]
[1724079609371,0.00498987,58747.0,58746.0,1.90486062]
[1724079609571,0.00498987,58747.0,58746.0,1.94236477]
[1724079609777,0.00498987,58747.0,58746.0,2.96291677]
[1724079609985,0.00498987,58747.0,58746.0,2.35112]
[1724079610429,0.00498987,58747.0,58746.0,2.36412]
[1724079610862,0.00498987,58747.0,58746.0,0.183224]
[1724079611072,0.00498987,58747.0,58746.0,0.85112]
[1724079611283,0.00498987,58747.0,58746.0,1.196568]
[1724079612182,0.00498987,58747.0,58746.0,1.193568]
[1724079612348,0.00498987,58747.0,58746.0,0.85312]
[1724079612545,0.00498987,58747.0,58746.0,0.95534]
[1724079612546,0.00698987,58747.0,58746.0,0.95534]
[1724079612815,0.00698987,58747.0,58746.0,0.274444]
[1724079613143,0.00698987,58747.0,58746.0,0.00422]
[1724079613527,0.08739381,58747.0,58746.0,0.174444]
[1724079613732,0.01261612,58747.0,58746.0,0.174444]
[1724079613886,0.00698987,58747.0,58746.0,0.514892]
[1724079614064,0.00498987,58747.0,58746.0,0.174444]
[1724079614246,0.01999406,58747.0,58746.0,0.00422]
[1724079614493,0.01999406,58747.0,58746.0,0.00522]
[1724079614696,0.09739406,58747.0,58746.0,0.00422]
[1724079614943,0.50454654,58747.0,58746.0,0.00422]
[1724079615191,0.47999681,58747.0,58746.0,1e-08]
[1724079615394,0.47437028,58747.0,58746.0,1e-08]
[1724079615618,0.81481228,58747.0,58746.0,1e-08]
[1724079615743,1.49569628,58747.0,58746.0,1e-08]
[1724079615939,0.340462,58744.0,58739.0,1.5]
[1724079616146,0.03237766,58743.0,58740.0,0.17024]
[1724079616388,0.00937766,58742.0,58740.0,0.17024]
[1724079616552,0.00937766,58742.0,58739.0,1.5]
[1724079616553,0.00937766,58742.0,58741.0,0.170238]
[1724079616800,0.00937835,58742.0,58741.0,0.170238]
[1724079616957,0.00937835,58742.0,58739.0,1.840484]
[1724079616958,0.00937838,58742.0,58740.0,0.170241]
[1724079617158,0.023,58743.0,58740.0,0.170241]
[1724079617381,0.00937838,58742.0,58739.0,1.5]
[1724079617579,0.023,58743.0,58741.0,0.170238]
[1724079617782,0.00937838,58742.0,58740.0,0.170239]
[1724079617992,0.000818,58742.0,58741.0,0.510715]
[1724079618269,0.000818,58742.0,58741.0,0.170238]
[1724079618477,0.01019635,58742.0,58741.0,0.510715]
[1724079618882,0.01019635,58742.0,58741.0,0.170238]
[1724079619013,0.01019635,58742.0,58741.0,0.171238]
[1724079619233,0.03053839,58742.0,58741.0,0.001]
[1724079619633,0.03053839,58742.0,58741.0,0.003]
[1724079619855,0.01019635,58742.0,58741.0,0.002]
[1724079620032,0.01019635,58742.0,58741.0,0.512715]
[1724079620598,0.01019646,58742.0,58741.0,0.512715]
[1724079621119,0.000818,58742.0,58741.0,0.172238]
[1724079621340,0.02960066,58742.0,58741.0,0.002]
[1724079621538,0.64273624,58742.0,58741.0,0.003]
[1724079621740,0.81408501,58742.0,58741.0,0.003]
[1724079621942,0.30337901,58742.0,58741.0,0.003]
[1724079622146,0.47361401,58742.0,58741.0,0.003]
[1724079622344,0.52107541,58742.0,58735.0,1.5]
[1724079622623,0.52107541,58742.0,58739.0,0.170243]
[1724079622624,0.04841224,58741.0,58739.0,0.170243]
[1724079622824,0.02541224,58740.0,58739.0,0.170244]
[1724079623025,0.04841224,58740.0,58739.0,0.170244]
[1724079623243,0.04841224,58740.0,58738.0,0.170246]
[1724079623446,0.03237846,58739.0,58738.0,0.170246]
[1724079623645,0.03237846,58739.0,58735.0,1.5]
[1724079624023,0.00937846,58738.0,58737.0,0.17025]
[1724079624166,0.05533658,58738.0,58735.0,1.5]
[1724079624382,0.02541358,58737.0,58736.0,0.170253]
[1724079624588,0.01603512,58737.0,58736.0,0.170253]
[1724079624810,0.02541458,58737.0,58736.0,0.170253]
[1724079625005,0.02541458,58737.0,58735.0,0.170256]
[1724079625354,0.0664,58738.0,58731.0,0.340531]
[1724079625355,0.02541458,58736.0,58731.0,0.340531]
[1724079625564,0.02541458,58735.0,58732.0,0.1711638]
[1724079625789,0.170262,58733.0,58732.0,0.0008998]
[1724079626031,0.02541458,58733.0,58732.0,0.0008998]
[1724079626301,0.04841458,58733.0,58732.0,0.0008998]
[1724079626560,0.62337811,58733.0,58732.0,0.0008998]
[1724079626774,0.65225742,58733.0,58732.0,0.0008998]
[1724079627159,0.65225742,58733.0,58732.0,0.0018998]
[1724079627362,0.83692866,58733.0,58732.0,0.0018998]
[1724079627932,0.0646,58739.0,58732.0,0.0018998]
[1724079628212,0.170259,58734.0,58732.0,0.0018998]
[1724079628430,0.02541772,58733.0,58732.0,0.0018998]
[1724079628839,0.02941772,58733.0,58732.0,0.0018998]
[1724079629046,0.02541772,58733.0,58732.0,0.0018998]
[1724079629241,0.19567972,58733.0,58732.0,0.0018998]
[1724079629491,0.53620372,58733.0,58732.0,0.0008998]
[1724079629627,0.19567972,58733.0,58732.0,0.0008998]
[1724079629834,0.53620372,58733.0,58732.0,0.0008998]
[1724079630055,0.87672772,58733.0,58732.0,0.0008998]
[1724079630230,0.87972772,58733.0,58732.0,0.0008998]
[1724079630428,1.07607649,58733.0,58732.0,0.0008998]
[1724079630631,1.07607649,58733.0,58721.0,0.170294]
[1724079630632,0.17028,58727.0,58721.0,0.170294]
[1724079630843,0.02541772,58726.0,58725.0,0.170285]
[1724079631048,0.02541772,58726.0,58724.0,0.170287]
[1724079631246,0.02541772,58725.0,58724.0,0.170287]
[1724079631447,0.00938007,58725.0,58724.0,0.170287]
[1724079631654,0.0579,58729.0,58721.0,0.170295]
[1724079631655,0.02540993,58728.0,58721.0,0.170295]
[1724079631939,0.170285,58725.0,58720.0,0.170299]
[1724079632119,0.04840993,58727.0,58719.0,0.34285371]
[1724079632120,0.02540993,58724.0,58719.0,0.00225071]
[1724079632327,0.02540993,58723.0,58719.0,0.00225071]
[1724079632494,0.002,58725.0,58719.0,0.00225071]
[1724079632495,0.02541282,58722.0,58719.0,0.00225071]
[1724079632693,0.02541282,58721.0,58720.0,0.170297]
[1724079632964,0.631767,58726.0,58719.0,0.00225071]
[1724079633172,0.01603215,58721.0,58720.0,0.001]
[1724079633380,0.02541395,58721.0,58720.0,0.001]
[1724079633585,0.02541395,58721.0,58720.0,0.171299]
[1724079633796,0.02541395,58721.0,58720.0,0.001]
[1724079634411,0.02941395,58721.0,58720.0,0.170299]
[1724079634805,0.02941395,58721.0,58719.0,0.00225071]
[1724079635000,0.02541395,58720.0,58719.0,0.00225071]
[1724079635348,0.0093818,58720.0,58719.0,0.00225071]
[1724079635567,0.3009808,58720.0,58719.0,0.00225071]
[1724079635936,1.5867749,58720.0,58719.0,0.00225071]
[1724079636140,1.58778092,58720.0,58719.0,0.00225071]
[1724079636355,1.95369082,58720.0,58719.0,0.00225071]
[1724079636545,1.93766066,58720.0,58719.0,0.00225071]
[1724079636747,1.95398557,58720.0,58719.0,0.00225071]
[1724079637177,2.12533434,58720.0,58719.0,0.00225071]
[1724079637415,2.05411367,58720.0,58719.0,0.00325071]
[1724079637616,2.34847739,58720.0,58719.0,0.00325071]
[1724079637812,2.35047739,58720.0,58719.0,0.00325071]
[1724079638011,2.34547739,58720.0,58719.0,0.00225071]
[1724079638228,2.34347739,58720.0,58719.0,0.00225071]
[1724079638360,2.36247739,58720.0,58719.0,0.00425071]
[1724079638760,2.34847739,58720.0,58719.0,0.00325071]
[1724079639106,2.36247739,58720.0,58719.0,0.00425071]
[1724079639319,2.36247739,58720.0,58719.0,0.00325071]
[1724079639536,2.4893718,58720.0,58719.0,0.00325071]
[1724079639733,1.659399,58716.0,58715.0,1e-08]
[1724079639951,1.8297469,58716.0,58715.0,1e-08]
[1724079640356,2.1703689,58716.0,58715.0,0.00167753]
[1724079640575,2.46004077,58716.0,58715.0,0.00167753]
[1724079640786,1.610099,58710.0,58709.0,0.0008998]
[1724079640989,1.8298689,58710.0,58709.0,0.0008998]
[1724079641195,1.82987049,58710.0,58709.0,0.0008998]
[1724079641403,1.88061005,58710.0,58709.0,0.0008998]
[1724079641602,1.852046,58710.0,58709.0,0.0008998]
[1724079641801,0.80389949,58710.0,58709.0,0.0008998]
[1724079642003,1.14655649,58710.0,58709.0,0.0008998]
[1724079642205,1.03595649,58710.0,58709.0,0.0008998]
[1724079642934,0.86460772,58710.0,58709.0,0.0008998]
[1724079643248,0.87860772,58710.0,58709.0,0.0008998]
[1724079643443,0.53795072,58710.0,58709.0,0.0008998]
[1724079643847,1.21926472,58710.0,58709.0,0.0008998]
[1724079644056,1.30752429,58710.0,58709.0,0.0008998]
[1724079644210,1.47887306,58710.0,58709.0,0.0008998]
[1724079644418,1.86339279,58710.0,58709.0,0.0008998]
[1724079644617,1.53677524,58710.0,58709.0,0.0008998]
[1724079644823,1.53677474,58710.0,58709.0,0.0008998]
[1724079645085,0.05342436,58710.0,58709.0,0.0008998]
[1724079645286,0.22375236,58710.0,58709.0,0.0008998]
[1724079645493,0.56440936,58710.0,58709.0,0.0008998]
[1724079645703,1.36761513,58710.0,58709.0,0.0008998]
[1724079645911,1.42751513,58710.0,58709.0,0.0008998]
[1724079646295,1.9375209,58710.0,58709.0,0.0008998]
[1724079646498,1.9415209,58710.0,58709.0,0.0008998]
[1724079646919,1.9645209,58710.0,58709.0,0.0008998]
[1724079647662,2.0263209,58710.0,58709.0,0.0008998]
[1724079647948,0.41810113,58710.0,58709.0,0.0008998]
[1724079648237,0.05342436,58710.0,58709.0,0.0008998]
[1724079648421,0.03738478,58710.0,58709.0,0.0008998]
[1724079648627,0.39509967,58710.0,58709.0,0.0008998]
[1724079648864,0.0534229,58710.0,58709.0,0.0008998]
[1724079649071,0.2237509,58710.0,58709.0,0.0008998]
[1724079649273,0.5644079,58710.0,58709.0,0.0008998]
[1724079649447,0.5734079,58710.0,58709.0,0.0008998]
[1724079649779,1.09541268,58710.0,58709.0,0.0008998]
[1724079649949,1.88311095,58710.0,58709.0,0.0008998]
[1724079650157,1.94591095,58710.0,58709.0,0.0008998]
[1724079650487,1.94891095,58710.0,58709.0,0.0008998]
[1724079650839,1.19435395,58710.0,58709.0,0.0008998]
[1724079651039,1.09741268,58710.0,58709.0,0.0008998]
[1724079651229,1.07141268,58710.0,58709.0,0.0008998]
[1724079651367,1.70526968,58710.0,58709.0,0.0008998]
[1724079651567,1.72126968,58710.0,58709.0,0.0008998]
[1724079652140,1.87861845,58710.0,58709.0,0.0008998]
[1724079652356,1.87461845,58710.0,58709.0,0.0008998]
[1724079652512,1.36261268,58710.0,58709.0,0.0008998]
[1724079652714,1.37661268,58710.0,58709.0,0.0008998]
[1724079653077,1.70326968,58710.0,58709.0,0.0008998]
[1724079653278,1.08441268,58710.0,58709.0,0.0008998]
[1724079653485,0.74375568,58710.0,58709.0,0.0008998]
[1724079653685,0.06142191,58710.0,58709.0,0.0008998]
[1724079653889,0.23274991,58710.0,58709.0,0.0008998]
[1724079654268,0.57340691,58710.0,58709.0,0.0008998]
[1724079654391,0.58740691,58710.0,58709.0,0.0008998]
[1724079654585,0.92806391,58710.0,58709.0,0.0008998]
[1724079654796,1.17861877,58710.0,58709.0,0.0008998]
[1724079655005,1.19161877,58710.0,58709.0,0.0008998]
[1724079655858,0.07542191,58710.0,58709.0,0.0008998]
[1724079656218,0.05101898,58710.0,58709.0,0.0008998]
[1724079656343,0.06040337,58710.0,58709.0,0.0008998]
[1724079656547,0.07340337,58710.0,58709.0,0.0008998]
[1724079657229,0.05142185,58710.0,58709.0,0.5932938]
[1724079657437,0.05142185,58710.0,58709.0,0.9339568]
[1724079657639,0.05142185,58710.0,58709.0,0.5932938]
[1724079657889,0.05142185,58710.0,58709.0,0.9339568]
[1724079658406,0.03842185,58710.0,58709.0,0.9339568]
[1724079659010,0.03842185,58710.0,58709.0,0.5932938]
[1724079659452,0.03842122,58710.0,58709.0,0.5932938]
[1724079659571,0.013,58710.0,58709.0,0.0822998]
[1724079659766,0.0183838,58710.0,58709.0,0.0822998]
[1724079660072,0.03441995,58710.0,58709.0,0.2526308]
[1724079660270,0.04441996,58710.0,58709.0,0.2526308]
[1724079660475,0.04441996,58710.0,58709.0,2.0932938]
[1724079661138,0.04441996,58710.0,58709.0,1.7526308]
[1724079661341,0.04441996,58710.0,58709.0,1.5822998]
[1724079661540,0.21474796,58710.0,58709.0,0.0008998]
[1724079661749,0.04441996,58710.0,58709.0,0.0008998]
[1724079661951,0.55540496,58710.0,58709.0,0.0008998]
[1724079662099,0.91906196,58710.0,58709.0,0.0008998]
[1724079662323,1.09041073,58710.0,58709.0,0.0008998]
[1724079662588,1.09241073,58710.0,58709.0,0.0008998]
[1724079662793,1.43506773,58710.0,58709.0,0.0008998]
[1724079663013,1.6064165,58710.0,58709.0,0.0008998]
[1724079663227,1.66432094,58710.0,58709.0,0.0008998]
[1724079663490,1.73640846,58710.0,58709.0,0.0008998]
[1724079663731,1.66432094,58710.0,58709.0,0.0008998]
[1724079663974,1.94541805,58710.0,58709.0,0.0008998]
[1724079664210,2.27707505,58710.0,58709.0,0.0008998]
[1724079664422,2.37852507,58710.0,58709.0,0.0008998]
[1724079664595,2.35676348,58710.0,58709.0,0.0008998]
[1724079664830,2.37076348,58710.0,58709.0,0.0008998]
[1724079665459,2.49757601,58710.0,58709.0,0.0008998]
[1724079665767,2.37076348,58710.0,58709.0,0.0008998]
[1724079666115,2.49757601,58710.0,58709.0,0.0008998]
[1724079666512,2.37076348,58710.0,58709.0,0.0008998]
[1724079667198,2.34533908,58710.0,58709.0,0.0008998]
[1724079667431,2.37076527,58710.0,58709.0,0.0008998]
[1724079667838,2.0301082,58710.0,58709.0,0.0008998]
[1724079668046,2.0261082,58710.0,58709.0,0.0008998]
[1724079668269,2.0301082,58710.0,58709.0,0.0008998]
[1724079668480,2.03030992,58710.0,58709.0,0.0008998]
[1724079668836,2.01426965,58710.0,58709.0,0.0008998]
[1724079669041,2.03030991,58710.0,58709.0,0.0008998]
[1724079670443,1.96840991,58710.0,58709.0,0.0008998]
[1724079670842,1.79706114,58710.0,58709.0,0.0008998]
[1724079671274,1.7990608,58710.0,58709.0,0.0008998]
[1724079671618,1.8010608,58710.0,58709.0,0.0008998]
[1724079672619,1.79889712,58710.0,58709.0,0.0008998]
[1724079672829,0.511081,58699.0,58698.0,0.07974456]
[1724079672990,0.63587925,58699.0,58698.0,0.07974456]
[1724079673439,0.55950677,58699.0,58698.0,0.07974456]
[1724079673687,0.02542577,58699.0,58698.0,0.07974456]
[1724079674075,0.08735202,58699.0,58698.0,0.07974456]
[1724079674270,0.08735202,58699.0,58698.0,0.25010756]
[1724079674534,0.03642577,58699.0,58698.0,0.25010756]
[1724079674780,0.03642577,58699.0,58698.0,0.99426156]
[1724079674990,0.03642577,58699.0,58698.0,1.33598856]
[1724079675199,0.02038585,58699.0,58698.0,1.33598856]
[1724079675393,0.03642369,58699.0,58698.0,2.83598856]
[1724079675812,0.02542369,58699.0,58698.0,2.83598856]
[1724079676178,0.03342369,58699.0,58698.0,2.83598856]
[1724079676383,0.02542369,58699.0,58698.0,2.83598856]
[1724079676855,0.02742369,58699.0,58698.0,2.83598856]
[1724079677072,0.03542369,58699.0,58698.0,2.15353456]
[1724079677292,0.0863692,58699.0,58698.0,2.15353456]
[1724079677577,0.0863692,58699.0,58698.0,0.31280756]
[1724079677578,0.322535,58699.0,58698.0,0.31280756]
[1724079677799,0.02742369,58699.0,58698.0,0.99426156]
[1724079677965,0.02742369,58699.0,58698.0,0.65353456]
[1724079677966,0.08043284,58699.0,58698.0,0.65353456]
[1724079678373,0.10394156,58699.0,58698.0,0.14244456]
[1724079678524,0.10396029,58699.0,58698.0,0.14244456]
[1724079678746,0.32543337,58699.0,58698.0,0.14244456]
[1724079678964,0.35143337,58699.0,58698.0,0.14244456]
[1724079679162,0.34204926,58699.0,58698.0,0.14244456]
[1724079679416,0.47872224,58699.0,58698.0,0.14244456]
[1724079679638,0.47872224,58699.0,58698.0,0.07974456]
[1724079679639,0.98980324,58699.0,58698.0,0.07974456]
[1724079679841,0.50275521,58699.0,58698.0,0.07974456]
[1724079680117,0.85451583,58699.0,58698.0,0.07974456]
[1724079680291,1.32378349,58699.0,58698.0,0.08064436]
[1724079680477,0.98706249,58699.0,58698.0,0.08064436]
[1724079680682,0.86651583,58699.0,58698.0,0.08064436]
[1724079680887,0.86251583,58699.0,58698.0,0.08064436]
[1724079681347,0.87051583,58699.0,58698.0,0.08064436]
[1724079681762,0.51333202,58699.0,58698.0,0.08064436]
[1724079682118,0.87905302,58699.0,58698.0,0.08064436]
[1724079682322,0.87905302,58699.0,58698.0,0.0008998]
[1724079682755,0.34497202,58699.0,58698.0,0.4181268]
[1724079682957,0.47269071,58699.0,58698.0,0.9292168]
[1724079683157,0.34497202,58699.0,58698.0,0.9292168]
[1724079683372,0.13655794,58699.0,58698.0,0.9292168]
[1724079683570,0.34496907,58699.0,58698.0,2.4292168]
[1724079683770,0.47268677,58699.0,58698.0,2.4292168]
[1724079684547,0.47268677,58699.0,58698.0,1.5773998]
[1724079684701,0.47268677,58699.0,58698.0,1.7477628]
[1724079684904,0.47268677,58699.0,58698.0,2.0884898]
[1724079685125,0.47268677,58699.0,58698.0,2.4930168]
[1724079685264,0.34496907,58699.0,58698.0,2.4930168]
[1724079685469,0.47269053,58699.0,58698.0,2.4930168]
[1724079686151,0.47530234,58699.0,58698.0,2.4930168]
[1724079686593,0.34758204,58699.0,58698.0,1.8115628]
[1724079687529,0.34758412,58699.0,58698.0,1.8115628]
[1724079687758,0.34758412,58699.0,58698.0,3.34681957]
[1724079688104,0.03438524,58699.0,58698.0,3.44777719]
[1724079688305,0.025,58699.0,58698.0,3.44681957]
[1724079688504,0.025,58699.0,58698.0,3.44977719]
[1724079688942,0.012,58699.0,58698.0,3.44977719]
[1724079689145,0.012,58699.0,58698.0,3.79050419]
[1724079689348,0.013,58699.0,58698.0,3.79050419]
[1724079689548,0.05190934,58710.0,58709.0,0.1441]
[1724079689763,0.02623337,58710.0,58709.0,1.16710577]
[1724079689992,0.02623337,58710.0,58709.0,1.50876877]
[1724079689993,0.01020027,58710.0,58709.0,1.50876877]
[1724079690201,0.01020027,58710.0,58709.0,1.43742]
[1724079690604,0.01020027,58710.0,58709.0,1.096757]
[1724079690815,0.01020027,58710.0,58709.0,0.996757]
[1724079691252,0.02623385,58710.0,58709.0,0.996757]
[1724079691451,0.000818,58710.0,58709.0,0.996757]
[1724079691902,0.01020043,58710.0,58709.0,0.99712608]
[1724079692088,0.01020038,58710.0,58709.0,0.99712608]
[1724079692296,0.0102009,58710.0,58709.0,2.49712608]
[1724079692510,0.02623525,58710.0,58709.0,2.49712608]
[1724079693400,0.03223525,58710.0,58709.0,2.49712608]
[1724079693825,0.02923525,58710.0,58709.0,2.49712608]
[1724079694034,0.02623525,58710.0,58709.0,2.49712608]
[1724079694473,0.02623525,58710.0,58709.0,2.84278908]
[1724079694675,0.0102009,58710.0,58709.0,2.84278908]
[1724079695117,0.0112009,58710.0,58709.0,2.84278908]
[1724079695996,0.0112009,58710.0,58709.0,2.50212608]
[1724079696208,0.1815289,58710.0,58709.0,0.00536908]
[1724079696435,0.56147737,58710.0,58709.0,0.00536908]
[1724079696661,0.44434005,58710.0,58709.0,0.00536908]
[1724079696868,0.44326011,58710.0,58709.0,0.00536908]
[1724079697076,0.44326011,58710.0,58709.0,0.00036908]
[1724079697284,0.61858811,58710.0,58709.0,0.00036908]
[1724079697489,0.95924511,58710.0,58709.0,0.00036908]
[1724079697707,1.08498688,58710.0,58709.0,0.00036908]
[1724079697926,1.02108688,58710.0,58709.0,0.00036908]
[1724079698134,1.36374388,58710.0,58709.0,0.00036908]
[1724079698347,1.77540088,58710.0,58709.0,0.00036908]
[1724079698559,2.19658083,58710.0,58709.0,0.00036908]
[1724079698762,2.3619296,58710.0,58709.0,0.00036908]
[1724079698964,2.3679296,58710.0,58709.0,0.00036908]
[1724079699359,2.3619296,58710.0,58709.0,0.00036908]
[1724079699568,2.3619296,58710.0,58693.0,0.0658]
[1724079699569,0.0291,58683.0,58675.0,0.51404632]
[1724079699765,0.10204471,58678.0,58675.0,0.51404632]
[1724079699966,0.29341556,58677.0,58673.0,0.01002]
[1724079700171,0.29341556,58677.0,58676.0,0.08832]
[1724079700344,0.12743675,58677.0,58676.0,0.08832]
[1724079700559,0.29341556,58677.0,58676.0,0.08832]
[1724079701167,0.39541711,58677.0,58676.0,0.08832]
[1724079701442,0.10189556,58677.0,58676.0,0.08832]
[1724079701638,0.10589556,58677.0,58676.0,0.08832]
[1724079702331,0.0294352,58677.0,58676.0,0.08832]
[1724079702484,0.11189556,58677.0,58676.0,0.08832]
[1724079702641,0.2058592,58677.0,58676.0,0.08832]
[1724079702871,0.256812,58677.0,58676.0,0.08832]
[1724079703354,0.086388,58677.0,58676.0,0.08832]
[1724079703558,0.0354352,58677.0,58676.0,0.08832]
[1724079703814,0.0354352,58677.0,58676.0,0.259747]
[1724079703997,0.0354352,58677.0,58676.0,0.600601]
[1724079704204,0.0354352,58677.0,58676.0,0.321347]
[1724079704205,0.01938888,58677.0,58676.0,0.321347]
[1724079704390,0.01938888,58677.0,58676.0,1.821347]
[1724079704391,0.01938856,58677.0,58676.0,1.821347]
[1724079704936,0.01938856,58677.0,58676.0,0.321347]
[1724079705363,0.01938856,58677.0,58676.0,0.662201]
[1724079706153,0.01938856,58677.0,58676.0,0.321347]
[1724079706359,0.01938856,58677.0,58676.0,0.15092]
[1724079706555,0.01938856,58677.0,58676.0,0.14992]
[1724079706904,0.18981256,58677.0,58676.0,0.14992]
[1724079707332,0.87151056,58677.0,58676.0,0.14992]
[1724079707530,0.93849028,58677.0,58676.0,0.00902]
[1724079707733,0.8875586,58677.0,58676.0,0.00902]
[1724079707943,0.93851953,58677.0,58676.0,0.00902]
[1724079708149,0.88756034,58677.0,58676.0,0.00902]
[1724079708351,0.96391075,58677.0,58676.0,0.00902]
[1724079708552,0.88756034,58677.0,58676.0,0.00902]
[1724079708961,0.96391075,58677.0,58676.0,0.00902]
[1724079709169,0.96491075,58677.0,58676.0,0.00902]
[1724079709374,0.88756034,58677.0,58676.0,0.00902]
[1724079709754,1.05890911,58677.0,58676.0,0.00902]
[1724079710412,1.10976987,58677.0,58676.0,0.00902]
[1724079710616,0.5975721,58677.0,58676.0,0.00902]
[1724079710828,0.20586234,58677.0,58676.0,0.00902]
[1724079711289,0.18981354,58677.0,58676.0,0.00902]
[1724079711953,0.180424,58677.0,58676.0,0.00902]
[1724079712177,0.01938951,58677.0,58676.0,0.00902]
[1724079712627,0.18981351,58677.0,58676.0,0.00902]
[1724079713517,0.01938951,58677.0,58676.0,0.08862]
[1724079714818,0.01938951,58677.0,58676.0,0.259047]
[1724079715025,0.01,58677.0,58676.0,0.325147]
[1724079715886,0.01,58677.0,58676.0,0.15572]
[1724079716104,0.90659416,58677.0,58676.0,0.00902]
[1724079716325,0.87151116,58677.0,58676.0,0.00902]
[1724079716519,0.87817047,58677.0,58676.0,0.00902]
[1724079716800,1.42575809,58677.0,58676.0,0.00902]
[1724079717008,1.59710686,58677.0,58676.0,0.00902]
[1724079717268,1.64792118,58677.0,58676.0,0.00902]
[1724079717509,1.64751109,58677.0,58676.0,0.00902]
[1724079717752,1.59669847,58677.0,58676.0,0.00902]
[1724079718501,1.64389577,58677.0,58676.0,0.00902]
[1724079718730,1.77019577,58677.0,58676.0,0.00902]
[1724079718979,1.193031,58674.0,58673.0,0.00902]
[1724079719221,1.12274037,58674.0,58673.0,0.00902]
[1724079719438,1.46460637,58674.0,58673.0,0.00902]
[1724079719611,1.41581979,58674.0,58673.0,0.00902]
[1724079719883,1.56172854,58674.0,58673.0,0.00902]
[1724079720142,1.58417055,58674.0,58673.0,0.00902]
[1724079720411,1.08595578,58674.0,58673.0,0.00902]
[1724079721277,1.42982178,58674.0,58673.0,0.00902]
[1724079721795,1.42682178,58674.0,58673.0,0.00902]
[1724079722207,1.56282178,58674.0,58673.0,0.00902]
[1724079722405,1.606332,58669.0,58668.0,0.0009009]
[1724079722530,1.82612278,58669.0,58668.0,0.0009009]
[1724079722736,1.87687805,58669.0,58668.0,0.0009009]
[1724079723364,1.82312278,58669.0,58668.0,0.0009009]
[1724079723566,1.99447155,58669.0,58668.0,0.0009009]
[1724079723721,1.93557155,58669.0,58668.0,0.0009009]
[1724079724090,1.96457155,58669.0,58668.0,0.0009009]
[1724079724299,1.96557155,58669.0,58668.0,0.0009009]
[1724079724509,1.96357155,58669.0,58668.0,0.0009009]
[1724079724713,2.30646655,58669.0,58668.0,0.0009009]
[1724079724919,1.96557155,58669.0,58668.0,0.0009009]
[1724079725124,1.96757155,58669.0,58668.0,0.0009009]
[1724079725516,1.96381645,58669.0,58668.0,0.0009009]
[1724079725749,1.96757155,58669.0,58668.0,0.0009009]
[1724079725951,1.96357155,58669.0,58668.0,0.0009009]
[1724079726119,1.97781771,58669.0,58668.0,0.0009009]
[1724079726465,1.91412954,58669.0,58668.0,0.0009009]
[1724079726623,1.96757496,58669.0,58668.0,0.0009009]
[1724079726840,1.95357496,58669.0,58668.0,0.0009009]
[1724079727022,1.93957496,58669.0,58668.0,0.0009009]
[1724079727228,2.00847496,58669.0,58668.0,0.0009009]
[1724079727430,2.01047496,58669.0,58668.0,0.0009009]
[1724079727629,2.08424409,58669.0,58668.0,0.0009009]
[1724079728202,2.08624409,58669.0,58668.0,0.0009009]
[1724079728403,2.02647496,58669.0,58668.0,0.0009009]
[1724079728796,1.196297,58661.0,58660.0,0.00902]